fUSD/lending_fUSD_20250214
["ID","MTS","AMOUNT","RATE_DAILY","PERIOD"]
[353106113,1739563834616,-502.40193817,0.00013698,2]
[353106115,1739563834626,-500.0,0.00013698,2]
[353106117,1739563834637,-500.0,0.00013698,2]
[353106119,1739563834647,-500.0,0.00013698,2]
[353106121,1739563834656,-500.0,0.00013698,2]
[353106123,1739563834666,-501.1396969,0.00013698,2]
[353106125,1739563834676,-500.0,0.00013698,2]
[353106127,1739563834685,-921.36,0.00013698,2]
[353106129,1739563834695,-500.0,0.00013698,2]
[353106131,1739563834705,-500.0,0.00013698,2]
[353106133,1739563834716,-739.46,0.00013698,2]
[353106135,1739563834727,-500.0,0.00013698,2]
[353106138,1739563834737,-500.0,0.00013698,2]
[353106140,1739563834748,-500.0,0.00013698,2]
[353106142,1739563834758,-500.0,0.00013698,2]
[353106144,1739563834768,-500.0,0.00013698,2]
[353106146,1739563834779,-500.0,0.00013698,2]
[353106148,1739563834790,-500.93269542,0.00013698,2]
[353106150,1739563834800,-500.0,0.00013698,2]
[353106152,1739563834811,-616.46,0.00013698,2]
[353106154,1739563834821,-500.0,0.00013698,2]
[353106156,1739563834831,-500.0,0.00013698,2]
[353106158,1739563834841,-500.0,0.00013698,2]
[353106160,1739563834852,-500.0,0.00013698,2]
[353106162,1739563834863,-500.0,0.00013698,2]
[353106164,1739563834873,-742.2,0.00013698,2]
[353106166,1739563834883,-200.81417576,0.00013698,2]
[353106168,1739563834894,-628.42,0.00013698,2]
[353106170,1739563834904,-506.49669718,0.00013698,2]
[353106172,1739563834913,-500.0,0.00013698,2]
[353106175,1739563834924,-500.0,0.00013698,2]
[353106176,1739563834934,-490.53376015,0.00013698,2]
[353106177,1739563834945,-500.0,0.00013698,2]
[353106178,1739563834954,-500.0,0.00013698,2]
[353106179,1739563834963,-505.86,0.00013698,2]
[353106180,1739563834972,-280.53262511,0.00013698,2]
[353106181,1739563834982,-500.0,0.00013698,2]
[353106182,1739563834992,-500.0,0.00013698,2]
[353106183,1739563835002,-569.87,0.00013698,2]
[353106184,1739563835013,-500.0,0.00013698,2]
[353106185,1739563835023,-500.0,0.00013698,2]
[353106186,1739563835033,-500.0,0.00013698,2]
[353106188,1739563835043,-879.66,0.00013698,2]
[353106190,1739563835052,-500.0,0.00013698,2]
[353106192,1739563835062,-507.32894733,0.00013698,2]
[353106194,1739563835072,-500.0,0.00013698,2]
[353106196,1739563835081,-500.0,0.00013698,2]
[353106198,1739563835091,-507.17706383,0.00013698,2]
[353106200,1739563835100,-500.0,0.00013698,2]
[353106202,1739563835109,-503.63841868,0.00013698,2]
[353106204,1739563835119,-500.0,0.00013698,2]
[353106206,1739563835128,-500.0,0.00013698,2]
[353106208,1739563835138,-843.42,0.00013698,2]
[353106210,1739563835147,-500.0,0.00013698,2]
[353106212,1739563835156,-500.0,0.00013698,2]
[353106214,1739563835165,-500.0,0.00013698,2]
[353106216,1739563835175,-500.0,0.00013698,2]
[353106218,1739563835185,-500.0,0.00013698,2]
[353106220,1739563835196,-502.26273265,0.00013698,2]
[353106222,1739563835206,-500.0,0.00013698,2]
[353106224,1739563835217,-503.30678872,0.00013698,2]
[353106226,1739563835227,-500.0,0.00013698,2]
[353106228,1739563835238,-500.0,0.00013698,2]
[353106230,1739563835249,-500.60630467,0.00013698,2]
[353106232,1739563835260,-500.0,0.00013698,2]
[353106234,1739563835272,-500.0,0.00013698,2]
[353106236,1739563835282,-500.0,0.00013698,2]
[353106238,1739563835292,-500.0,0.00013698,2]
[353106240,1739563835303,-500.0,0.00013698,2]
[353106242,1739563835313,-500.0,0.00013698,2]
[353106244,1739563835323,-500.0,0.00013698,2]
[353106246,1739563835332,-500.0,0.00013698,2]
[353106248,1739563835342,-500.0,0.00013698,2]
[353106250,1739563835352,-500.0,0.00013698,2]
[353106253,1739563835365,-500.0,0.00013698,2]
[353106255,1739563835375,-631.60057929,0.00013698,2]
[353106257,1739563835384,-500.0,0.00013698,2]
[353106259,1739563835394,-500.0,0.00013698,2]
[353106261,1739563835403,-500.0,0.00013698,2]
[353106263,1739563835415,-500.0,0.00013698,2]
[353106265,1739563835424,-856.63,0.00013698,2]
[353106267,1739563835434,-500.0,0.00013698,2]
[353106269,1739563835445,-500.0,0.00013698,2]
[353106271,1739563835455,-661.56,0.00013698,2]
[353106273,1739563835464,-500.0,0.00013698,2]
[353106275,1739563835474,-500.0,0.00013698,2]
[353106277,1739563835483,-500.0,0.00013698,2]
[353106279,1739563835495,-500.0,0.00013698,2]
[353106281,1739563835504,-500.0,0.00013698,2]
[353106283,1739563835514,-531.99,0.00013698,2]
[353106285,1739563835524,-500.0,0.00013698,2]
[353106287,1739563835534,-500.0,0.00013698,2]
[353106289,1739563835544,-500.0,0.00013698,2]
[353106291,1739563835556,-500.0,0.00013698,2]
[353106293,1739563835566,-625.08,0.00013698,2]
[353106295,1739563835576,-500.0,0.00013698,2]
[353106297,1739563835586,-853.7,0.00013698,2]
[353106300,1739563835595,-500.0,0.00013698,2]
[353106302,1739563835605,-500.0,0.00013698,2]
[353106304,1739563835615,-500.0,0.00013698,2]
[353106306,1739563835624,-500.0,0.00013698,2]
[353106308,1739563835634,-500.0,0.00013698,2]
[353106310,1739563835643,-676.98,0.00013698,2]
[353106312,1739563835652,-500.0,0.00013698,2]
[353106314,1739563835661,-500.0,0.00013698,2]
[353106316,1739563835671,-500.0,0.00013698,2]
[353106318,1739563835680,-500.0,0.00013698,2]
[353106320,1739563835689,-500.0,0.00013698,2]
[353106322,1739563835699,-500.0,0.00013698,2]
[353106324,1739563835709,-500.0,0.00013698,2]
[353106326,1739563835719,-500.0,0.00013698,2]
[353106328,1739563835729,-500.0,0.00013698,2]
[353106330,1739563835739,-500.0,0.00013698,2]
[353106332,1739563835749,-500.0,0.00013698,2]
[353106334,1739563835758,-502.13064991,0.00013698,2]
[353106336,1739563835768,-500.77637955,0.00013698,2]
[353106338,1739563835778,-500.0,0.00013698,2]
[353106340,1739563835788,-2663.2,0.00013698,2]
[353106342,1739563835798,-500.0,0.00013698,2]
[353106344,1739563835808,-566.44,0.00013698,2]
[353106346,1739563835819,-671.18,0.00013698,2]
[353106348,1739563835828,-500.0,0.00013698,2]
[353106350,1739563835838,-500.84898578,0.00013698,2]
[353106352,1739563835848,-500.0,0.00013698,2]
[353106354,1739563835857,-383.74379887,0.00013698,2]
[353106356,1739563835867,-330.12226495,0.00013698,2]
[353106358,1739563835876,-950.09,0.00013698,2]
[353106360,1739563835886,-500.0,0.00013698,2]
[353106362,1739563835896,-500.0,0.00013698,2]
[353106364,1739563835906,-500.0,0.00013698,2]
[353106366,1739563835916,-500.0,0.00013698,2]
[353106368,1739563835926,-500.0,0.00013698,2]
[353106370,1739563835935,-668.29,0.00013698,2]
[353106372,1739563835945,-500.0,0.00013698,2]
[353106374,1739563835955,-500.0,0.00013698,2]
[353106376,1739563835965,-500.0,0.00013698,2]
[353106379,1739563835975,-500.0,0.00013698,2]
[353106381,1739563835984,-686.71,0.00013698,2]
[353106383,1739563835995,-686.71,0.00013698,2]
[353106385,1739563836005,-686.71,0.00013698,2]
[353106387,1739563836014,-686.71,0.00013698,2]
[353106389,1739563836023,-2071.2,0.00013698,2]
[353106391,1739563836032,-686.71,0.00013698,2]
[353106393,1739563836042,-686.71,0.00013698,2]
[353106395,1739563836052,-500.0,0.00013698,2]
[353106397,1739563836061,-686.71,0.00013698,2]
[353106399,1739563836071,-500.0,0.00013698,2]
[353106401,1739563836080,-686.71,0.00013698,2]
[353106403,1739563836089,-660.92,0.00013698,2]
[353106405,1739563836099,-686.71,0.00013698,2]
[353106407,1739563836108,-686.71,0.00013698,2]
[353106409,1739563836118,-501.57453448,0.00013698,2]
[353106411,1739563836127,-686.71,0.00013698,2]
[353106413,1739563836137,-686.71,0.00013698,2]
[353106415,1739563836146,-686.71,0.00013698,2]
[353106417,1739563836155,-686.71,0.00013698,2]
[353106419,1739563836165,-500.29431775,0.00013698,2]
[353106421,1739563836175,-625.34086442,0.00013698,2]
[353106423,1739563836184,-500.0,0.00013698,2]
[353106425,1739563836193,-222.15068868,0.00013698,2]
[353106427,1739563836203,-500.0,0.00013698,2]
[353106429,1739563836212,-995.95,0.00013698,2]
[353106431,1739563836222,-500.0,0.00013698,2]
[353106433,1739563836231,-500.56408953,0.00013698,2]
[353106435,1739563836241,-503.36942331,0.00013698,2]
[353106437,1739563836250,-500.0,0.00013698,2]
[353106439,1739563836260,-500.0,0.00013698,2]
[353106441,1739563836270,-500.0,0.00013698,2]
[353106443,1739563836279,-500.0,0.00013698,2]
[353106445,1739563836288,-500.0,0.00013698,2]
[353106447,1739563836298,-500.0,0.00013698,2]
[353106449,1739563836307,-500.0,0.00013698,2]
[353106451,1739563836316,-500.0,0.00013698,2]
[353106453,1739563836326,-1709.4,0.00013698,2]
[353106455,1739563836335,-500.0,0.00013698,2]
[353106457,1739563836345,-500.0,0.00013698,2]
[353106459,1739563836355,-500.77171124,0.00013698,2]
[353106461,1739563836367,-500.0,0.00013698,2]
[353106463,1739563836377,-500.0,0.00013698,2]
[353106465,1739563836386,-500.0,0.00013698,2]
[353106467,1739563836397,-500.0,0.00013698,2]
[353106469,1739563836406,-500.72164468,0.00013698,2]
[353106471,1739563836415,-657.51,0.00013698,2]
[353106473,1739563836425,-500.0,0.00013698,2]
[353106475,1739563836435,-523.35,0.00013698,2]
[353106477,1739563836445,-500.0,0.00013698,2]
[353106479,1739563836454,-500.0,0.00013698,2]
[353106481,1739563836467,-500.0,0.00013698,2]
[353106483,1739563836476,-500.0,0.00013698,2]
[353106485,1739563836488,-500.0,0.00013698,2]
[353106487,1739563836497,-500.0,0.00013698,2]
[353106489,1739563836507,-500.0,0.00013698,2]
[353106492,1739563836518,-500.0,0.00013698,2]
[353106493,1739563836529,-500.0,0.00013698,2]
[353106496,1739563836540,-500.0,0.00013698,2]
[353106498,1739563836551,-197.61793674,0.00013698,2]
[353106500,1739563836562,-500.0,0.00013698,2]
[353106502,1739563836573,-500.0,0.00013698,2]
[353106504,1739563836583,-500.0,0.00013698,2]
[353106506,1739563836592,-500.0,0.00013698,2]
[353106508,1739563836602,-500.0,0.00013698,2]
[353106510,1739563836611,-1180.81,0.00013698,2]
[353106512,1739563836621,-500.0,0.00013698,2]
[353106514,1739563836630,-500.0,0.00013698,2]
[353106516,1739563836639,-500.0,0.00013698,2]
[353106518,1739563836649,-500.0,0.00013698,2]
[353106520,1739563836659,-500.0,0.00013698,2]
[353106522,1739563836669,-500.0,0.00013698,2]
[353106524,1739563836679,-500.0,0.00013698,2]
[353106526,1739563836688,-500.0,0.00013698,2]
[353106528,1739563836697,-755.13,0.00013698,2]
[353106530,1739563836708,-500.0,0.00013698,2]
[353106532,1739563836719,-500.0,0.00013698,2]
[353106534,1739563836729,-500.0,0.00013698,2]
[353106536,1739563836739,-500.0,0.00013698,2]
[353106538,1739563836748,-500.0,0.00013698,2]
[353106540,1739563836758,-500.0,0.00013698,2]
[353106542,1739563836768,-1199.62,0.00013698,2]
[353106544,1739563836778,-631.11,0.00013698,2]
[353106546,1739563836787,-554.10393706,0.00013698,2]
[353106548,1739563836796,-500.0,0.00013698,2]
[353106550,1739563836806,-1531.24,0.00013698,2]
[353106552,1739563836815,-1064.28,0.00013698,2]
[353106554,1739563836825,-500.0,0.00013698,2]
[353106556,1739563836834,-500.0,0.00013698,2]
[353106558,1739563836843,-500.0,0.00013698,2]
[353106560,1739563836853,-500.0,0.00013698,2]
[353106562,1739563836862,-500.0,0.00013698,2]
[353106564,1739563836872,-364.23811962,0.00013698,2]
[353106565,1739563836880,-500.0,0.00013698,2]
[353106566,1739563836890,-550.02541698,0.00013698,2]
[353106567,1739563836899,-500.0,0.00013698,2]
[353106568,1739563836911,-500.0,0.00013698,2]
[353106569,1739563836921,-500.0,0.00013698,2]
[353106570,1739563836930,-500.0,0.00013698,2]
[353106571,1739563836939,-500.0,0.00013698,2]
[353106572,1739563836949,-500.0,0.00013698,2]
[353106573,1739563836961,-1025.43,0.00013698,2]
[353106574,1739563836971,-2028.79,0.00013698,2]
[353106576,1739563836980,-500.0,0.00013698,2]
[353106578,1739563836989,-386.49452972,0.00013698,2]
[353106580,1739563837000,-502.54644799,0.00013698,2]
[353106582,1739563837009,-500.0,0.00013698,2]
[353106584,1739563837019,-500.0,0.00013698,2]
[353106586,1739563837029,-500.0,0.00013698,2]
[353106588,1739563837039,-504.28523729,0.00013698,2]
[353106590,1739563837049,-500.0,0.00013698,2]
[353106592,1739563837060,-758.5,0.00013698,2]
[353106594,1739563837069,-500.0,0.00013698,2]
[353106596,1739563837079,-500.0,0.00013698,2]
[353106598,1739563837088,-500.0,0.00013698,2]
[353106600,1739563837098,-500.0,0.00013698,2]
[353106602,1739563837107,-1698.76,0.00013698,2]
[353106604,1739563837116,-500.0,0.00013698,2]
[353106606,1739563837126,-500.0,0.00013698,2]
[353106608,1739563837136,-804.17,0.00013698,2]
[353106610,1739563837145,-500.0,0.00013698,2]
[353106612,1739563837155,-502.76716042,0.00013698,2]
[353106614,1739563837164,-500.0,0.00013698,2]
[353106616,1739563837174,-500.0,0.00013698,2]
[353106618,1739563837183,-500.0,0.00013698,2]
[353106620,1739563837193,-500.84163252,0.00013698,2]
[353106622,1739563837202,-500.0,0.00013698,2]
[353106624,1739563837212,-500.0,0.00013698,2]
[353106626,1739563837223,-500.0,0.00013698,2]
[353106628,1739563837233,-1295.63,0.00013698,2]
[353106630,1739563837243,-500.0,0.00013698,2]
[353106632,1739563837253,-500.0,0.00013698,2]
[353106634,1739563837263,-507.67,0.00013698,2]
[353106636,1739563837273,-500.0,0.00013698,2]
[353106638,1739563837283,-1117.17,0.00013698,2]
[353106640,1739563837293,-500.0,0.00013698,2]
[353106642,1739563837304,-500.0,0.00013698,2]
[353106644,1739563837313,-688.3,0.00013698,2]
[353106646,1739563837323,-503.60049465,0.00013698,2]
[353106648,1739563837333,-500.0,0.00013698,2]
[353106650,1739563837343,-504.24828861,0.00013698,2]
[353106652,1739563837354,-500.0,0.00013698,2]
[353106654,1739563837367,-500.0,0.00013698,2]
[353106656,1739563837377,-836.44,0.00013698,2]
[353106659,1739563837388,-500.0,0.00013698,2]
[353106661,1739563837398,-501.90326206,0.00013698,2]
[353106663,1739563837408,-500.0,0.00013698,2]
[353106665,1739563837418,-1041.16,0.00013698,2]
[353106667,1739563837428,-501.69653753,0.00013698,2]
[353106669,1739563837437,-165.1929145,0.00013698,2]
[353106695,1739563837687,-500.0,0.00013698,2]
[353106697,1739563837697,-500.0,0.00013698,2]
[353106699,1739563837707,-500.0,0.00013698,2]
[353106701,1739563837717,-505.06935373,0.00013698,2]
[353106703,1739563837728,-852.14,0.00013698,2]
[353106705,1739563837738,-1937.88,0.00013698,2]
[353106707,1739563837748,-502.0324362,0.00013698,2]
[353106709,1739563837758,-500.0,0.00013698,2]
[353106712,1739563837768,-502.53000845,0.00013698,2]
[353106714,1739563837779,-500.0,0.00013698,2]
[353106716,1739563837790,-500.0,0.00013698,2]
[353106718,1739563837799,-500.0,0.00013698,2]
[353106720,1739563837809,-1330.27,0.00013698,2]
[353106724,1739563837819,-500.0,0.00013698,2]
[353106727,1739563837830,-507.98266246,0.00013698,2]
[353106729,1739563837839,-500.0,0.00013698,2]
[353106732,1739563837849,-501.16826811,0.00013698,2]
[353106734,1739563837859,-500.0,0.00013698,2]
[353106736,1739563837868,-502.02113852,0.00013698,2]
[353106739,1739563837879,-575.1,0.00013698,2]
[353106743,1739563837889,-509.91499773,0.00013698,2]
[353106745,1739563837900,-2044.64,0.00013698,2]
[353106747,1739563837910,-500.0,0.00013698,2]
[353106749,1739563837919,-642.84,0.00013698,2]
[353106751,1739563837929,-500.0,0.00013698,2]
[353106753,1739563837939,-2030.11,0.00013698,2]
[353106756,1739563837949,-500.0,0.00013698,2]
[353106758,1739563837959,-698.08,0.00013698,2]
[353106760,1739563837969,-798.39,0.00013698,2]
[353106762,1739563837978,-501.12230798,0.00013698,2]
[353106764,1739563837988,-500.0,0.00013698,2]
[353106766,1739563837998,-2250.74,0.00013698,2]
[353106767,1739563838007,-500.76844315,0.00013698,2]
[353106769,1739563838016,-500.0,0.00013698,2]
[353106771,1739563838026,-521.37429128,0.00013698,2]
[353106774,1739563838036,-501.18567775,0.00013698,2]
[353106776,1739563838046,-500.0,0.00013698,2]
[353106778,1739563838056,-500.0,0.00013698,2]
[353106780,1739563838066,-500.0,0.00013698,2]
[353106782,1739563838075,-1404.78,0.00013698,2]
[353106784,1739563838085,-500.0,0.00013698,2]
[353106786,1739563838095,-506.69909048,0.00013698,2]
[353106788,1739563838104,-500.0,0.00013698,2]
[353106790,1739563838114,-255.76775205,0.00013698,2]
[353106792,1739563838123,-500.0,0.00013698,2]
[353106794,1739563838132,-500.0,0.00013698,2]
[353106796,1739563838142,-500.0,0.00013698,2]
[353106798,1739563838151,-500.0,0.00013698,2]
[353106800,1739563838161,-500.0,0.00013698,2]
[353106802,1739563838170,-500.0,0.00013698,2]
[353106804,1739563838180,-796.51,0.00013698,2]
[353106806,1739563838189,-500.0,0.00013698,2]
[353106808,1739563838198,-500.0,0.00013698,2]
[353106810,1739563838208,-500.0,0.00013698,2]
[353106812,1739563838218,-1623.37,0.00013698,2]
[353106814,1739563838227,-501.26,0.00013698,2]
[353106816,1739563838238,-500.0,0.00013698,2]
[353106818,1739563838248,-500.0,0.00013698,2]
[353106820,1739563838259,-883.87,0.00013698,2]
[353106822,1739563838268,-500.0,0.00013698,2]
[353106824,1739563838278,-500.0,0.00013698,2]
[353106826,1739563838287,-502.19564408,0.00013698,2]
[353106828,1739563838298,-784.8,0.00013698,2]
[353106830,1739563838307,-500.0,0.00013698,2]
[353106832,1739563838318,-623.91,0.00013698,2]
[353106834,1739563838328,-505.25,0.00013698,2]
[353106836,1739563838337,-501.38605779,0.00013698,2]
[353106838,1739563838347,-962.51,0.00013698,2]
[353106840,1739563838360,-503.18663599,0.00013698,2]
[353106842,1739563838369,-500.0,0.00013698,2]
[353106844,1739563838378,-500.0,0.00013698,2]
[353106846,1739563838388,-500.0,0.00013698,2]
[353106849,1739563838399,-500.0,0.00013698,2]
[353106851,1739563838409,-500.0,0.00013698,2]
[353106853,1739563838419,-500.0,0.00013698,2]
[353106855,1739563838429,-721.61,0.00013698,2]
[353106857,1739563838439,-825.62,0.00013698,2]
[353106859,1739563838450,-500.0,0.00013698,2]
[353106861,1739563838461,-504.41135783,0.00013698,2]
[353106863,1739563838470,-526.7109471,0.00013698,2]
[353106865,1739563838480,-500.0,0.00013698,2]
[353106867,1739563838491,-500.0,0.00013698,2]
[353106869,1739563838500,-500.0,0.00013698,2]
[353106871,1739563838510,-500.0,0.00013698,2]
[353106873,1739563838519,-784.42,0.00013698,2]
[353106875,1739563838528,-503.38005968,0.00013698,2]
[353106877,1739563838538,-501.66645823,0.00013698,2]
[353106879,1739563838547,-500.0,0.00013698,2]
[353106881,1739563838557,-500.0,0.00013698,2]
[353106883,1739563838567,-500.0,0.00013698,2]
[353106885,1739563838576,-500.79820642,0.00013698,2]
[353106887,1739563838586,-500.0,0.00013698,2]
[353106889,1739563838595,-1808.0,0.00013698,2]
[353106891,1739563838605,-500.0,0.00013698,2]
[353106893,1739563838614,-1280.46,0.00013698,2]
[353106895,1739563838624,-500.0,0.00013698,2]
[353106897,1739563838633,-500.0,0.00013698,2]
[353106899,1739563838643,-500.0,0.00013698,2]
[353106901,1739563838652,-491.90377398,0.00013698,2]
[353106903,1739563838662,-500.0,0.00013698,2]
[353106905,1739563838671,-607.26,0.00013698,2]
[353106907,1739563838681,-500.0,0.00013698,2]
[353106908,1739563838690,-500.0,0.00013698,2]
[353106909,1739563838700,-500.0,0.00013698,2]
[353106910,1739563838710,-500.0,0.00013698,2]
[353106911,1739563838720,-500.0,0.00013698,2]
[353106912,1739563838730,-500.0,0.00013698,2]
[353106913,1739563838740,-500.0,0.00013698,2]
[353106914,1739563838749,-502.21947915,0.00013698,2]
[353106915,1739563838759,-502.33353687,0.00013698,2]
[353106916,1739563838769,-1169.14,0.00013698,2]
[353106917,1739563838778,-500.0,0.00013698,2]
[353106919,1739563838788,-500.0,0.00013698,2]
[353106921,1739563838797,-500.0,0.00013698,2]
[353106923,1739563838806,-500.0,0.00013698,2]
[353106925,1739563838815,-500.0,0.00013698,2]
[353106927,1739563838825,-500.0,0.00013698,2]
[353106929,1739563838835,-500.0,0.00013698,2]
[353106931,1739563838845,-500.0,0.00013698,2]
[353106933,1739563838854,-500.91639188,0.00013698,2]
[353106935,1739563838864,-501.57913544,0.00013698,2]
[353106937,1739563838874,-503.11947818,0.00013698,2]
[353106939,1739563838884,-501.08299865,0.00013698,2]
[353106941,1739563838893,-1613.47,0.00013698,2]
[353106943,1739563838903,-500.0,0.00013698,2]
[353106945,1739563838913,-500.0,0.00013698,2]
[353106947,1739563838922,-500.0,0.00013698,2]
[353106949,1739563838932,-504.61522041,0.00013698,2]
[353106951,1739563838942,-511.79796542,0.00013698,2]
[353106953,1739563838951,-500.0,0.00013698,2]
[353106955,1739563838962,-500.0,0.00013698,2]
[353106957,1739563838972,-500.0,0.00013698,2]
[353106959,1739563838981,-1107.07,0.00013698,2]
[353106961,1739563838990,-305.79461018,0.00013698,2]
[353106963,1739563839000,-500.0,0.00013698,2]
[353106965,1739563839009,-500.0,0.00013698,2]
[353106967,1739563839018,-967.62,0.00013698,2]
[353106969,1739563839029,-754.08,0.00013698,2]
[353106971,1739563839039,-503.12166533,0.00013698,2]
[353106973,1739563839049,-500.0,0.00013698,2]
[353106975,1739563839058,-606.58,0.00013698,2]
[353106977,1739563839069,-500.0,0.00013698,2]
[353106979,1739563839078,-500.0,0.00013698,2]
[353106981,1739563839088,-500.0,0.00013698,2]
[353106983,1739563839097,-502.69819417,0.00013698,2]
[353106985,1739563839107,-500.0,0.00013698,2]
[353106987,1739563839118,-500.0,0.00013698,2]
[353106989,1739563839128,-1281.16,0.00013698,2]
[353106991,1739563839137,-552.73043513,0.00013698,2]
[353106993,1739563839147,-500.0,0.00013698,2]
[353106995,1739563839156,-500.0,0.00013698,2]
[353106997,1739563839166,-528.55075351,0.00013698,2]
[353106999,1739563839176,-500.0,0.00013698,2]
[353107001,1739563839185,-663.92,0.00013698,2]
[353107003,1739563839195,-500.0,0.00013698,2]
[353107005,1739563839204,-500.0,0.00013698,2]
[353107007,1739563839214,-500.0,0.00013698,2]
[353107009,1739563839223,-500.0,0.00013698,2]
[353107011,1739563839233,-500.0,0.00013698,2]
[353107013,1739563839243,-500.0,0.00013698,2]
[353107015,1739563839253,-500.0,0.00013698,2]
[353107017,1739563839263,-500.0,0.00013698,2]
[353107019,1739563839273,-500.0,0.00013698,2]
[353107021,1739563839282,-854.68,0.00013698,2]
[353107023,1739563839292,-500.0,0.00013698,2]
[353107025,1739563839301,-500.0,0.00013698,2]
[353107027,1739563839311,-500.0,0.00013698,2]
[353107029,1739563839321,-500.0,0.00013698,2]
[353107031,1739563839330,-897.34,0.00013698,2]
[353107033,1739563839339,-500.0,0.00013698,2]
[353107035,1739563839349,-1076.86,0.00013698,2]
[353107037,1739563839360,-1280.76,0.00013698,2]
[353107039,1739563839372,-500.0,0.00013698,2]
[353107041,1739563839381,-500.0,0.00013698,2]
[353107043,1739563839391,-612.38,0.00013698,2]
[353107046,1739563839401,-500.0,0.00013698,2]
[353107048,1739563839413,-500.0,0.00013698,2]
[353107050,1739563839423,-500.0,0.00013698,2]
[353107052,1739563839433,-502.45501558,0.00013698,2]
[353107054,1739563839445,-503.95539833,0.00013698,2]
[353107056,1739563839456,-500.0,0.00013698,2]
[353107058,1739563839465,-603.04,0.00013698,2]
[353107060,1739563839475,-500.0,0.00013698,2]
[353107062,1739563839484,-500.0,0.00013698,2]
[353107064,1739563839494,-1338.87,0.00013698,2]
[353107066,1739563839504,-500.0,0.00013698,2]
[353107068,1739563839514,-607.73,0.00013698,2]
[353107070,1739563839523,-500.0,0.00013698,2]
[353107072,1739563839533,-500.0,0.00013698,2]
[353107074,1739563839543,-500.0,0.00013698,2]
[353107076,1739563839552,-503.45996294,0.00013698,2]
[353107078,1739563839562,-500.0,0.00013698,2]
[353107080,1739563839572,-500.0,0.00013698,2]
[353107082,1739563839581,-934.27,0.00013698,2]
[353107084,1739563839590,-500.0,0.00013698,2]
[353107086,1739563839600,-500.0,0.00013698,2]
[353107088,1739563839609,-500.0,0.00013698,2]
[353107090,1739563839619,-500.0,0.00013698,2]
[353107092,1739563839628,-500.0,0.00013698,2]
[353107094,1739563839638,-500.0,0.00013698,2]
[353107096,1739563839648,-500.0,0.00013698,2]
[353107098,1739563839658,-504.99671396,0.00013698,2]
[353107100,1739563839668,-500.0,0.00013698,2]
[353107102,1739563839677,-360.67323626,0.00013698,2]
[353107104,1739563839687,-500.0,0.00013698,2]
[353107106,1739563839696,-501.71954248,0.00013698,2]
[353107108,1739563839706,-500.0,0.00013698,2]
[353107110,1739563839716,-500.0,0.00013698,2]
[353107112,1739563839726,-500.0,0.00013698,2]
[353107114,1739563839736,-577.53,0.00013698,2]
[353107116,1739563839748,-1672.07,0.00013698,2]
[353107118,1739563839757,-500.0,0.00013698,2]
[353107120,1739563839767,-153.610983,0.00013698,2]
[353107122,1739563839777,-907.46,0.00013698,2]